Workbook

Sheet DANVA-2 Cover

Sheet 6-7 yr. old Norms
A1: DANVA-2 Analysis
B2: FACES | C2: VOICES | K2: FACES | L2: VOICES
A3: Raw Scores | B3: 10 | C3: 12 | J3: Raw Scores | K3: 10 | L3: 12
A4: Means | B4: 6.2 | C4: 8.6 | J4: Means | K4: 8.1 | L4: 11.2
A5: SDs | B5: 3.4 | C5: 5.5 | J5: SDs | K5: 3.6 | L5: 4.7
A6: z-scores | B6: =IF(B3=0,"",(B3-6.2)/3.4) -> 1.117647059 | C6: =IF(C3=0,"",(C3-8.6)/5.5) -> 0.6181818182 | J6: z-scores | K6: =IF(K3=0,"",(K3-8.1)/3.6) -> 0.5277777778 | L6: =IF(L3=0,"",(L3-11.2)/4.7) -> 0.170212766
A7: S.S. | B7: =100+B6*(15) -> 116.7647059 | C7: =100+C6*(15) -> 109.2727273 | J7: S.S. | K7: =100+K6*(15) -> 107.9166667 | L7: =100+L6*(15) -> 102.5531915
A8: %ile | B8: =NORMSDIST(B6)*100 -> 86.81411191 | C8: =NORMSDIST(C6)*100 -> 73.17722531 | J8: %ile | K8: =NORMSDIST(K6)*100 -> 70.11732087 | L8: =NORMSDIST(L6)*100 -> 56.75785938
A9: T-score | B9: =50+B6*(10) -> 61.17647059 | C9: =50+C6*(10) -> 56.18181818 | J9: T-score | K9: =50+K6*(10) -> 55.27777778 | L9: =50+L6*(10) -> 51.70212766

Sheet 8-9 yr. old Norms
A1: DANVA-2 Analysis
B2: FACES | C2: VOICES | K2: FACES | L2: VOICES
A3: Raw Scores | B3: 10 | C3: 12 | J3: Raw Scores | K3: 10 | L3: 12
A4: Means | B4: 4.3 | C4: 6.2 | J4: Means | K4: 7.1 | L4: 9.8
A5: SDs | B5: 3.1 | C5: 4.6 | J5: SDs | K5: 3 | L5: 3.2
A6: z-scores | B6: =IF(B3=0,"",(B3-4.3)/3.1) -> 1.838709677 | C6: =IF(C3=0,"",(C3-6.2)/4.6) -> 1.260869565 | J6: z-scores | K6: =IF(K3=0,"",(K3-7.1)/3) -> 0.9666666667 | L6: =IF(L3=0,"",(L3-9.8)/3.2) -> 0.6875
A7: S.S. | B7: =100+B6*(15) -> 127.5806452 | C7: =100+C6*(15) -> 118.9130435 | J7: S.S. | K7: =100+K6*(15) -> 114.5 | L7: =100+L6*(15) -> 110.3125
A8: %ile | B8: =NORMSDIST(B6)*100 -> 96.70210504 | C8: =NORMSDIST(C6)*100 -> 89.63220775 | J8: %ile | K8: =NORMSDIST(K6)*100 -> 83.31446521 | L8: =NORMSDIST(L6)*100 -> 75.41161496
A9: T-score | B9: =50+B6*(10) -> 68.38709677 | C9: =50+C6*(10) -> 62.60869565 | J9: T-score | K9: =50+K6*(10) -> 59.66666667 | L9: =50+L6*(10) -> 56.875

Sheet 10 yr. old Norms
A1: DANVA-2 Analysis
B2: FACES | C2: VOICES | K2: FACES | L2: VOICES
A3: Raw Scores | B3: 10 | C3: 12 | J3: Raw Scores | K3: 10 | L3: 12
A4: Means | B4: 3.5 | C4: 5.3 | J4: Means | K4: 6 | L4: 9.1
A5: SDs | B5: 2.7 | C5: 3.7 | J5: SDs | K5: 3.1 | L5: 3.3
A6: z-scores | B6: =IF(B3=0,"",(B3-3.5)/2.7) -> 2.407407407 | C6: =IF(C3=0,"",(C3-5.3)/3.7) -> 1.810810811 | J6: z-scores | K6: =IF(K3=0,"",(K3-6)/3.1) -> 1.290322581 | L6: =IF(L3=0,"",(L3-9.1)/3.3) -> 0.8787878788
A7: S.S. | B7: =100+B6*(15) -> 136.1111111 | C7: =100+C6*(15) -> 127.1621622 | J7: S.S. | K7: =100+K6*(15) -> 119.3548387 | L7: =100+L6*(15) -> 113.1818182
A8: %ile | B8: =NORMSDIST(B6)*100 -> 99.19668822 | C8: =NORMSDIST(C6)*100 -> 96.49149289 | J8: %ile | K8: =NORMSDIST(K6)*100 -> 90.153066 | L8: =NORMSDIST(L6)*100 -> 81.02418502
A9: T-score | B9: =50+B6*(10) -> 74.07407407 | C9: =50+C6*(10) -> 68.10810811 | J9: T-score | K9: =50+K6*(10) -> 62.90322581 | L9: =50+L6*(10) -> 58.78787879

Sheet 11-12 yr. old Norms
A1: DANVA-2 Analysis
B2: FACES | C2: VOICES | K2: FACES | L2: VOICES
A3: Raw Scores | B3: 10 | C3: 12 | J3: Raw Scores | K3: 10 | L3: 12
A4: Means | B4: 3.4 | C4: 5.1 | J4: Means | K4: 4.9 | L4: 8.3
A5: SDs | B5: 2.3 | C5: 3.4 | J5: SDs | K5: 2.7 | L5: 2.8
A6: z-scores | B6: =IF(B3=0,"",(B3-3.4)/2.3) -> 2.869565217 | C6: =IF(C3=0,"",(C3-5.1)/3.4) -> 2.029411765 | J6: z-scores | K6: =IF(K3=0,"",(K3-4.9)/2.7) -> 1.888888889 | L6: =IF(L3=0,"",(L3-8.3)/2.8) -> 1.321428571
A7: S.S. | B7: =100+B6*(15) -> 143.0434783 | C7: =100+C6*(15) -> 130.4411765 | J7: S.S. | K7: =100+K6*(15) -> 128.3333333 | L7: =100+L6*(15) -> 119.8214286
A8: %ile | B8: =NORMSDIST(B6)*100 -> 99.79448172 | C8: =NORMSDIST(C6)*100 -> 97.87918161 | J8: %ile | K8: =NORMSDIST(K6)*100 -> 97.05466407 | L8: =NORMSDIST(L6)*100 -> 90.68207477
A9: T-score | B9: =50+B6*(10) -> 78.69565217 | C9: =50+C6*(10) -> 70.29411765 | J9: T-score | K9: =50+K6*(10) -> 68.88888889 | L9: =50+L6*(10) -> 63.21428571

Sheet 13-14 yr. old Norms
A1: DANVA-2 Analysis
B2: FACES | C2: VOICES | K2: FACES | L2: VOICES
A3: Raw Scores | B3: 10 | C3: 12 | J3: Raw Scores | K3: 10 | L3: 12
A4: Means | B4: 2.9 | C4: 4.5 | J4: Means | K4: 4.3 | L4: 7.3
A5: SDs | B5: 2.4 | C5: 3.2 | J5: SDs | K5: 2.4 | L5: 3.1
A6: z-scores | B6: =IF(B3=0,"",(B3-2.9)/2.4) -> 2.958333333 | C6: =IF(C3=0,"",(C3-4.5)/3.2) -> 2.34375 | J6: z-scores | K6: =IF(K3=0,"",(K3-4.3)/2.4) -> 2.375 | L6: =IF(L3=0,"",(L3-7.3)/3.1) -> 1.516129032
A7: S.S. | B7: =100+B6*(15) -> 144.375 | C7: =100+C6*(15) -> 135.15625 | J7: S.S. | K7: =100+K6*(15) -> 135.625 | L7: =100+L6*(15) -> 122.7419355
A8: %ile | B8: =NORMSDIST(B6)*100 -> 99.84534627 | C8: =NORMSDIST(C6)*100 -> 99.04545185 | J8: %ile | K8: =NORMSDIST(K6)*100 -> 99.12255249 | L8: =NORMSDIST(L6)*100 -> 93.52566357
A9: T-score | B9: =50+B6*(10) -> 79.58333333 | C9: =50+C6*(10) -> 73.4375 | J9: T-score | K9: =50+K6*(10) -> 73.75 | L9: =50+L6*(10) -> 65.16129032
